[Event "2026 Biel Blitz Open"]
[Site "Biel, CH"]
[Date "2026.07.19"]
[Round "2"]
[White "Waelti, Thomas"]
[Black "Gautier, Anand"]
[Result "0-1"]
[Board "24"]
[TimeControl "180+2"]
[WhiteFideId "1303996"]
[BlackFideId "26010186"]
[WhiteElo "1940"]
[BlackElo "2198"]
[BlackTitle "FM"]
[WhiteClock "0:00:32"]
[BlackClock "0:01:30"]
[Variant "Standard"]
[EndDate "2026.07.19"]
[EndTime "12:06:05"]

1. e4 {[%clk 0:03:03]}  c5 {[%clk 0:03:03]} 2. c3 {[%clk 0:03:04]}  d6 {[%clk 0:03:04]} 3. d4 {[%clk 0:03:05]}  Nf6 {[%clk 0:03:05]}
4. Nd2 {[%clk 0:02:55]}  e5 {[%clk 0:03:03]} 5. Bb5+ {[%clk 0:02:43]}  Bd7 {[%clk 0:03:03]} 6. Bxd7+ {[%clk 0:02:32]}  Qxd7 {[%clk 0:03:04]}
7. dxe5 {[%clk 0:02:29]}  dxe5 {[%clk 0:03:04]} 8. Ngf3 {[%clk 0:02:23]}  Nc6 {[%clk 0:03:06]} 9. O-O {[%clk 0:02:23]}  Be7 {[%clk 0:03:01]}
10. Re1 {[%clk 0:02:13]}  O-O {[%clk 0:02:59]} 11. Nc4 {[%clk 0:02:09]}  Qe6 {[%clk 0:02:12]} 12. Qb3 {[%clk 0:01:47]}  Rab8 {[%clk 0:01:56]}
13. a4 {[%clk 0:01:46]}  h6 {[%clk 0:01:50]} 14. Ncd2 {[%clk 0:01:20]}  Qd7 {[%clk 0:01:32]} 15. Nc4 {[%clk 0:01:16]}  Qc7 {[%clk 0:01:32]}
16. Bd2 {[%clk 0:00:58]}  b6 {[%clk 0:01:32]} 17. Rad1 {[%clk 0:00:59]}  a6 {[%clk 0:01:31]} 18. Na3 {[%clk 0:00:40]}  Na5 {[%clk 0:01:30]}
19. Qc2 {[%clk 0:00:39]}  c4 {[%clk 0:01:30]} 20. b4 {[%clk 0:00:33]}  cxb3 {[%clk 0:01:29]} 21. Qxb3 {[%clk 0:00:32]}  Nxb3 {[%clk 0:01:30]} 0-1

[Event "2026 Biel Blitz Open"]
[Site "Biel, CH"]
[Date "2026.07.19"]
[Round "2"]
[White "Coban, Ege"]
[Black "Liu, Bei"]
[Result "1-0"]
[Board "25"]
[TimeControl "180+2"]
[WhiteFideId "26320304"]
[BlackFideId "8603596"]
[WhiteElo "1936"]
[BlackElo "2170"]
[WhiteClock "0:01:34"]
[BlackClock "0:00:06"]
[Variant "Standard"]
[EndDate "2026.07.19"]
[EndTime "12:06:53"]

1. e4 {[%clk 0:03:02]}  c5 {[%clk 0:03:02]} 2. Nf3 {[%clk 0:03:03]}  d6 {[%clk 0:03:03]} 3. d4 {[%clk 0:03:04]}  cxd4 {[%clk 0:03:04]}
4. Nxd4 {[%clk 0:03:05]}  Nf6 {[%clk 0:03:06]} 5. Nc3 {[%clk 0:03:07]}  a6 {[%clk 0:03:07]} 6. Be3 {[%clk 0:03:07]}  e5 {[%clk 0:03:08]}
7. Nb3 {[%clk 0:03:08]}  Be6 {[%clk 0:03:09]} 8. Qd2 {[%clk 0:03:09]}  Nbd7 {[%clk 0:03:09]} 9. f4 {[%clk 0:03:08]}  b5 {[%clk 0:02:39]}
10. O-O-O {[%clk 0:03:08]}  Be7 {[%clk 0:02:31]} 11. f5 {[%clk 0:03:09]}  Bc4 {[%clk 0:02:32]} 12. g4 {[%clk 0:03:10]}  h6 {[%clk 0:02:17]}
13. h4 {[%clk 0:02:59]}  Nxg4 {[%clk 0:02:15]} 14. Kb1 {[%clk 0:02:39]}  Bxf1 {[%clk 0:02:13]} 15. Rdxf1 {[%clk 0:02:40]}  Ndf6 {[%clk 0:02:11]}
16. Rhg1 {[%clk 0:02:38]}  h5 {[%clk 0:02:10]} 17. Bg5 {[%clk 0:02:39]}  Rc8 {[%clk 0:02:08]} 18. Bxf6 {[%clk 0:02:33]}  Bxf6 {[%clk 0:02:09]}
19. Rd1 {[%clk 0:02:34]}  Be7 {[%clk 0:01:35]} 20. Nd5 {[%clk 0:02:31]}  O-O {[%clk 0:01:22]} 21. Qe2 {[%clk 0:02:30]}  Rc4 {[%clk 0:00:57]}
22. Nd2 {[%clk 0:02:05]}  Rd4 {[%clk 0:00:51]} 23. c3 {[%clk 0:02:02]}  Rxd5 {[%clk 0:00:52]} 24. exd5 {[%clk 0:02:03]}  Bxh4 {[%clk 0:00:51]}
25. Ne4 {[%clk 0:02:03]}  Qe7 {[%clk 0:00:36]} 26. Rxg4 {[%clk 0:01:45]}  hxg4 {[%clk 0:00:36]} 27. Qxg4 {[%clk 0:01:46]}  Rc8 {[%clk 0:00:20]}
28. Rh1 {[%clk 0:01:47]}  Bf6 {[%clk 0:00:13]} 29. Qh5 {[%clk 0:01:48]}  g6 {[%clk 0:00:10]} 30. fxg6 {[%clk 0:01:42]}  fxg6 {[%clk 0:00:11]}
31. Nxf6+ {[%clk 0:01:31]}  Qxf6 {[%clk 0:00:09]} 32. Qh7+ {[%clk 0:01:32]}  Kf8 {[%clk 0:00:10]} 33. Qh8+ {[%clk 0:01:29]}  Ke7 {[%clk 0:00:06]}
34. Rh7+ {[%clk 0:01:34]} 1-0

[Event "2026 Biel Blitz Open"]
[Site "Biel, CH"]
[Date "2026.07.19"]
[Round "2"]
[White "Fernandes Barbosa Dos Santos, Gabriel"]
[Black "Wilhelm, Serge"]
[Result "1-0"]
[Board "26"]
[TimeControl "180+2"]
[WhiteFideId "1354388"]
[BlackFideId "1305808"]
[WhiteElo "2167"]
[BlackElo "1923"]
[WhiteTitle "CM"]
[WhiteClock "0:00:12"]
[BlackClock "0:00:27"]
[Variant "Standard"]
[EndDate "2026.07.19"]
[EndTime "12:08:16"]

1. e4 {[%clk 0:03:02]}  c6 {[%clk 0:03:03]} 2. d4 {[%clk 0:03:03]}  d5 {[%clk 0:03:04]} 3. Nc3 {[%clk 0:03:03]}  dxe4 {[%clk 0:03:05]}
4. Nxe4 {[%clk 0:03:03]}  Nf6 {[%clk 0:03:06]} 5. Nxf6+ {[%clk 0:03:03]}  exf6 {[%clk 0:03:06]} 6. c3 {[%clk 0:03:03]}  Bd6 {[%clk 0:03:07]}
7. Bd3 {[%clk 0:03:03]}  O-O {[%clk 0:03:06]} 8. Ne2 {[%clk 0:03:03]}  Re8 {[%clk 0:03:06]} 9. Qc2 {[%clk 0:03:00]}  h5 {[%clk 0:03:06]}
10. Be3 {[%clk 0:02:59]}  Nd7 {[%clk 0:02:50]} 11. O-O-O {[%clk 0:02:58]}  b5 {[%clk 0:02:48]} 12. Kb1 {[%clk 0:02:46]}  Nb6 {[%clk 0:02:41]}
13. h3 {[%clk 0:02:42]}  Nd5 {[%clk 0:02:33]} 14. Bc1 {[%clk 0:02:26]}  a5 {[%clk 0:02:23]} 15. g4 {[%clk 0:02:25]}  h4 {[%clk 0:02:24]}
16. Rhg1 {[%clk 0:02:17]}  Qc7 {[%clk 0:02:00]} 17. g5 {[%clk 0:02:11]}  f5 {[%clk 0:02:00]} 18. g6 {[%clk 0:02:06]}  f6 {[%clk 0:01:45]}
19. Ka1 {[%clk 0:01:06]}  b4 {[%clk 0:01:28]} 20. c4 {[%clk 0:01:07]}  Nf4 {[%clk 0:01:29]} 21. c5 {[%clk 0:00:25]}  Nxd3 {[%clk 0:01:13]}
22. cxd6 {[%clk 0:00:22]}  Qxd6 {[%clk 0:01:13]} 23. Qxd3 {[%clk 0:00:19]}  Ba6 {[%clk 0:01:14]} 24. Qb3+ {[%clk 0:00:14]}  Qd5 {[%clk 0:01:07]}
25. Qxd5+ {[%clk 0:00:13]}  cxd5 {[%clk 0:01:08]} 26. Nf4 {[%clk 0:00:15]}  Rad8 {[%clk 0:01:00]} 27. Rge1 {[%clk 0:00:16]}  Bc4 {[%clk 0:00:54]}
28. b3 {[%clk 0:00:15]}  Bb5 {[%clk 0:00:48]} 29. Kb2 {[%clk 0:00:16]}  Bc6 {[%clk 0:00:41]} 30. Bd2 {[%clk 0:00:17]}  Re4 {[%clk 0:00:41]}
31. Be3 {[%clk 0:00:15]}  Rde8 {[%clk 0:00:40]} 32. Nd3 {[%clk 0:00:15]}  Bd7 {[%clk 0:00:27]} 33. Nc5 {[%clk 0:00:16]}  Bc8 {[%clk 0:00:29]}
34. Bd2 {[%clk 0:00:13]}  f4 {[%clk 0:00:29]} 35. Nxe4 {[%clk 0:00:14]}  dxe4 {[%clk 0:00:28]} 36. Bxf4 {[%clk 0:00:14]}  Bxh3 {[%clk 0:00:28]}
37. d5 {[%clk 0:00:11]}  Bg2 {[%clk 0:00:28]} 38. d6 {[%clk 0:00:11]}  Bf3 {[%clk 0:00:28]} 39. d7 {[%clk 0:00:11]}  Rd8 {[%clk 0:00:27]}
40. Bc7 {[%clk 0:00:12]} 1-0

[Event "2026 Biel Blitz Open"]
[Site "Biel, CH"]
[Date "2026.07.19"]
[Round "2"]
[White "Harish, Neeraj"]
[Black "Maruntis, Patrik-Robert"]
[Result "0-1"]
[Board "27"]
[TimeControl "180+2"]
[WhiteFideId "30958130"]
[BlackFideId "1259997"]
[WhiteElo "1920"]
[BlackElo "2167"]
[WhiteTitle "CM"]
[WhiteClock "0:00:10"]
[BlackClock "0:00:05"]
[Variant "Standard"]
[EndDate "2026.07.19"]
[EndTime "12:10:15"]

1. e4 {[%clk 0:03:03]}  d6 {[%clk 0:03:02]} 2. d4 {[%clk 0:03:03]}  Nf6 {[%clk 0:03:02]} 3. f3 {[%clk 0:03:00]}  e5 {[%clk 0:03:02]}
4. d5 {[%clk 0:02:56]}  Be7 {[%clk 0:03:03]} 5. Be3 {[%clk 0:02:56]}  O-O {[%clk 0:03:00]} 6. c4 {[%clk 0:02:57]}  a5 {[%clk 0:02:51]}
7. Nc3 {[%clk 0:02:56]}  Na6 {[%clk 0:02:51]} 8. Bd3 {[%clk 0:02:51]}  Ne8 {[%clk 0:02:44]} 9. Nge2 {[%clk 0:02:45]}  Nc5 {[%clk 0:02:28]}
10. Bc2 {[%clk 0:02:39]}  f5 {[%clk 0:02:10]} 11. exf5 {[%clk 0:02:39]}  Bxf5 {[%clk 0:02:10]} 12. Bxf5 {[%clk 0:02:38]}  Rxf5 {[%clk 0:02:09]}
13. Ng3 {[%clk 0:02:38]}  Rf8 {[%clk 0:02:06]} 14. O-O {[%clk 0:02:29]}  Bg5 {[%clk 0:01:59]} 15. Qd2 {[%clk 0:02:26]}  Bf4 {[%clk 0:01:54]}
16. Nge4 {[%clk 0:02:22]}  Nxe4 {[%clk 0:01:52]} 17. Nxe4 {[%clk 0:02:21]}  Nf6 {[%clk 0:01:53]} 18. Bxf4 {[%clk 0:02:12]}  Nxe4 {[%clk 0:01:36]}
19. fxe4 {[%clk 0:02:12]}  exf4 {[%clk 0:01:37]} 20. Rxf4 {[%clk 0:02:13]}  Qe7 {[%clk 0:01:38]} 21. Raf1 {[%clk 0:02:12]}  Rxf4 {[%clk 0:01:26]}
22. Qxf4 {[%clk 0:02:10]}  Re8 {[%clk 0:01:27]} 23. h3 {[%clk 0:02:07]}  h6 {[%clk 0:01:25]} 24. Re1 {[%clk 0:01:56]}  Rf8 {[%clk 0:01:19]}
25. Qg3 {[%clk 0:01:45]}  Re8 {[%clk 0:01:18]} 26. b3 {[%clk 0:01:43]}  b6 {[%clk 0:01:18]} 27. Re3 {[%clk 0:01:33]}  Qf6 {[%clk 0:01:11]}
28. Kh2 {[%clk 0:01:25]}  Qb2 {[%clk 0:00:58]} 29. h4 {[%clk 0:01:10]}  Qxa2 {[%clk 0:00:45]} 30. Qg6 {[%clk 0:01:10]}  Re7 {[%clk 0:00:30]}
31. Rg3 {[%clk 0:01:07]}  Qf2 {[%clk 0:00:16]} 32. h5 {[%clk 0:00:55]}  Qf4 {[%clk 0:00:12]} 33. Kh3 {[%clk 0:00:41]}  Kh8 {[%clk 0:00:06]}
34. Rg4 {[%clk 0:00:40]}  Qf1 {[%clk 0:00:06]} 35. Kh2 {[%clk 0:00:40]}  Qf8 {[%clk 0:00:06]} 36. g3 {[%clk 0:00:33]}  Qf2+ {[%clk 0:00:07]}
37. Kh3 {[%clk 0:00:34]}  Qf1+ {[%clk 0:00:06]} 38. Kh2 {[%clk 0:00:33]}  Qf2+ {[%clk 0:00:05]} 39. Kh3 {[%clk 0:00:33]}  Rf7 {[%clk 0:00:05]}
40. Rf4 {[%clk 0:00:27]}  Rxf4 {[%clk 0:00:04]} 41. gxf4 {[%clk 0:00:28]}  Qf3+ {[%clk 0:00:04]} 42. Kh2 {[%clk 0:00:22]}  Qxf4+ {[%clk 0:00:05]}
43. Kh3 {[%clk 0:00:20]}  Qf8 {[%clk 0:00:06]} 44. Qe6 {[%clk 0:00:19]}  Qf3+ {[%clk 0:00:06]} 45. Kh4 {[%clk 0:00:18]}  Qf4+ {[%clk 0:00:06]}
46. Kh3 {[%clk 0:00:19]}  Qf8 {[%clk 0:00:07]} 47. Qd7 {[%clk 0:00:18]}  Qf3+ {[%clk 0:00:06]} 48. Kh2 {[%clk 0:00:18]}  Qxh5+ {[%clk 0:00:05]}
49. Kg2 {[%clk 0:00:19]}  Qe2+ {[%clk 0:00:05]} 50. Kg3 {[%clk 0:00:21]}  Qe3+ {[%clk 0:00:07]} 51. Kh2 {[%clk 0:00:21]}  Qf2+ {[%clk 0:00:07]}
52. Kh3 {[%clk 0:00:21]}  Qf3+ {[%clk 0:00:05]} 53. Kh2 {[%clk 0:00:22]}  Qxe4 {[%clk 0:00:05]} 54. Qxc7 {[%clk 0:00:23]}  Qe5+ {[%clk 0:00:06]}
55. Kg2 {[%clk 0:00:23]}  Qe2+ {[%clk 0:00:06]} 56. Kh3 {[%clk 0:00:22]}  Qf3+ {[%clk 0:00:05]} 57. Kh2 {[%clk 0:00:23]}  Qf4+ {[%clk 0:00:05]}
58. Kg2 {[%clk 0:00:24]}  h5 {[%clk 0:00:04]} 59. Qxb6 {[%clk 0:00:22]}  h4 {[%clk 0:00:04]} 60. Qd8+ {[%clk 0:00:09]}  Kh7 {[%clk 0:00:05]}
61. Qe8 {[%clk 0:00:09]}  Qg3+ {[%clk 0:00:06]} 62. Kf1 {[%clk 0:00:09]}  Qf3+ {[%clk 0:00:04]} 63. Kg1 {[%clk 0:00:10]}  h3 {[%clk 0:00:05]} 0-1

[Event "2026 Biel Blitz Open"]
[Site "Biel, CH"]
[Date "2026.07.19"]
[Round "2"]
[White "Delion, Helge"]
[Black "Kelecevic, Nedeljko"]
[Result "0-1"]
[Board "29"]
[TimeControl "180+2"]
[WhiteFideId "12914568"]
[BlackFideId "14400537"]
[WhiteElo "1911"]
[BlackElo "2150"]
[BlackTitle "IM"]
[WhiteClock "0:00:05"]
[BlackClock "0:00:31"]
[Variant "Standard"]
[EndDate "2026.07.19"]
[EndTime "12:12:38"]

1. e4 {[%clk 0:03:03]}  e6 {[%clk 0:03:02]} 2. d4 {[%clk 0:03:04]}  d5 {[%clk 0:03:04]} 3. Nc3 {[%clk 0:03:04]}  Nc6 {[%clk 0:03:04]}
4. Nf3 {[%clk 0:02:59]}  Nf6 {[%clk 0:03:04]} 5. Bg5 {[%clk 0:02:37]}  dxe4 {[%clk 0:02:59]} 6. Nxe4 {[%clk 0:02:30]}  Be7 {[%clk 0:03:00]}
7. Nxf6+ {[%clk 0:02:15]}  Bxf6 {[%clk 0:03:01]} 8. Bxf6 {[%clk 0:02:13]}  Qxf6 {[%clk 0:03:02]} 9. c3 {[%clk 0:02:06]}  a6 {[%clk 0:03:02]}
10. Bd3 {[%clk 0:02:06]}  O-O {[%clk 0:02:52]} 11. O-O {[%clk 0:02:07]}  b6 {[%clk 0:02:48]} 12. Re1 {[%clk 0:02:03]}  Bb7 {[%clk 0:02:50]}
13. Qe2 {[%clk 0:02:01]}  Rfd8 {[%clk 0:02:36]} 14. Rad1 {[%clk 0:01:59]}  b5 {[%clk 0:02:24]} 15. Be4 {[%clk 0:01:53]}  Rab8 {[%clk 0:02:13]}
16. Ne5 {[%clk 0:01:37]}  Nxe5 {[%clk 0:02:11]} 17. Bxb7 {[%clk 0:01:37]}  Ng6 {[%clk 0:01:20]} 18. Bf3 {[%clk 0:01:29]}  Qg5 {[%clk 0:01:13]}
19. Qe3 {[%clk 0:01:24]}  Qxe3 {[%clk 0:01:11]} 20. Rxe3 {[%clk 0:01:25]}  Ne7 {[%clk 0:01:06]} 21. g3 {[%clk 0:01:20]}  Kf8 {[%clk 0:01:07]}
22. Rde1 {[%clk 0:01:18]}  Nf5 {[%clk 0:01:05]} 23. Re5 {[%clk 0:01:14]}  Rd6 {[%clk 0:00:50]} 24. Bg4 {[%clk 0:01:03]}  Ne7 {[%clk 0:00:42]}
25. f4 {[%clk 0:01:00]}  g6 {[%clk 0:00:48]} 26. Bf3 {[%clk 0:00:57]}  b4 {[%clk 0:00:49]} 27. Rc5 {[%clk 0:00:49]}  c6 {[%clk 0:00:48]}
28. g4 {[%clk 0:00:43]}  h6 {[%clk 0:00:48]} 29. Be4 {[%clk 0:00:38]}  bxc3 {[%clk 0:00:47]} 30. bxc3 {[%clk 0:00:38]}  Rb2 {[%clk 0:00:49]}
31. Bb1 {[%clk 0:00:34]}  Nd5 {[%clk 0:00:38]} 32. f5 {[%clk 0:00:31]}  gxf5 {[%clk 0:00:39]} 33. gxf5 {[%clk 0:00:32]}  exf5 {[%clk 0:00:29]}
34. Bxf5 {[%clk 0:00:31]}  Rf6 {[%clk 0:00:29]} 35. Be4 {[%clk 0:00:23]}  Rxa2 {[%clk 0:00:29]} 36. Bxd5 {[%clk 0:00:23]}  cxd5 {[%clk 0:00:31]}
37. Rxd5 {[%clk 0:00:23]}  Rff2 {[%clk 0:00:32]} 38. Rh5 {[%clk 0:00:20]}  Kg7 {[%clk 0:00:30]} 39. Kh1 {[%clk 0:00:20]}  Kg6 {[%clk 0:00:30]}
40. Rh3 {[%clk 0:00:19]}  Rac2 {[%clk 0:00:27]} 41. Rg1+ {[%clk 0:00:19]}  Kh7 {[%clk 0:00:26]} 42. d5 {[%clk 0:00:15]}  Rfd2 {[%clk 0:00:27]}
43. Rh5 {[%clk 0:00:14]}  a5 {[%clk 0:00:27]} 44. Ra1 {[%clk 0:00:12]}  Rxc3 {[%clk 0:00:27]} 45. Rf5 {[%clk 0:00:05]}  Kg6 {[%clk 0:00:28]}
46. Raf1 {[%clk 0:00:04]}  Rc7 {[%clk 0:00:26]} 47. h4 {[%clk 0:00:04]}  h5 {[%clk 0:00:24]} 48. Rf6+ {[%clk 0:00:05]}  Kg7 {[%clk 0:00:24]}
49. Ra6 {[%clk 0:00:05]}  Rxd5 {[%clk 0:00:24]} 50. Ra1 {[%clk 0:00:06]}  Rc4 {[%clk 0:00:23]} 51. R6xa5 {[%clk 0:00:07]}  Rxa5 {[%clk 0:00:25]}
52. Rxa5 {[%clk 0:00:08]}  Rxh4+ {[%clk 0:00:25]} 53. Kg2 {[%clk 0:00:09]}  Kg6 {[%clk 0:00:27]} 54. Kg3 {[%clk 0:00:10]}  Rg4+ {[%clk 0:00:28]}
55. Kh3 {[%clk 0:00:11]}  Rb4 {[%clk 0:00:29]} 56. Rc5 {[%clk 0:00:12]}  f6 {[%clk 0:00:29]} 57. Ra5 {[%clk 0:00:13]}  f5 {[%clk 0:00:28]}
58. Kg3 {[%clk 0:00:13]}  Kg5 {[%clk 0:00:29]} 59. Ra8 {[%clk 0:00:13]}  Rb3+ {[%clk 0:00:29]} 60. Kg2 {[%clk 0:00:13]}  Kf4 {[%clk 0:00:29]}
61. Ra4+ {[%clk 0:00:14]}  Kg5 {[%clk 0:00:30]} 62. Ra5 {[%clk 0:00:15]}  Kg4 {[%clk 0:00:30]} 63. Ra8 {[%clk 0:00:15]}  Rb2+ {[%clk 0:00:31]}
64. Kg1 {[%clk 0:00:15]}  f4 {[%clk 0:00:32]} 65. Rg8+ {[%clk 0:00:16]}  Kf3 {[%clk 0:00:33]} 66. Rh8 {[%clk 0:00:13]}  Rb1+ {[%clk 0:00:31]}
67. Kh2 {[%clk 0:00:14]}  Rb5 {[%clk 0:00:27]} 68. Rh7 {[%clk 0:00:11]}  Kf2 {[%clk 0:00:26]} 69. Kh3 {[%clk 0:00:10]}  f3 {[%clk 0:00:28]}
70. Kh2 {[%clk 0:00:09]}  Rg5 {[%clk 0:00:23]} 71. Re7 {[%clk 0:00:07]}  Rg2 {[%clk 0:00:27]} 72. Kh1 {[%clk 0:00:08]}  Rg1+ {[%clk 0:00:29]}
73. Kh2 {[%clk 0:00:10]}  Re1 {[%clk 0:00:30]} 74. Rh7 {[%clk 0:00:10]}  Re5 {[%clk 0:00:30]} 75. Rh6 {[%clk 0:00:09]}  Kf1 {[%clk 0:00:30]}
76. Kh1 {[%clk 0:00:07]}  f2 {[%clk 0:00:31]} 77. Rg6 {[%clk 0:00:05]}  Ke1 {[%clk 0:00:31]} 0-1

[Event "2026 Biel Blitz Open"]
[Site "Biel, CH"]
[Date "2026.07.19"]
[Round "2"]
[White "Lupei, Denis"]
[Black "Matsumura, Cocoro"]
[Result "0-1"]
[Board "30"]
[TimeControl "180+2"]
[WhiteFideId "34611231"]
[BlackFideId "36087114"]
[WhiteElo "1890"]
[BlackElo "2131"]
[BlackTitle "CM"]
[WhiteClock "0:00:26"]
[BlackClock "0:00:23"]
[Variant "Standard"]
[EndDate "2026.07.19"]
[EndTime "12:14:24"]

1. d4 {[%clk 0:03:02]}  d5 {[%clk 0:03:04]} 2. Bf4 {[%clk 0:03:03]}  c5 {[%clk 0:03:05]} 3. c3 {[%clk 0:03:04]}  Nc6 {[%clk 0:03:07]}
4. e3 {[%clk 0:03:04]}  Qb6 {[%clk 0:03:08]} 5. Qc2 {[%clk 0:02:52]}  Bf5 {[%clk 0:03:08]} 6. Qb3 {[%clk 0:02:45]}  c4 {[%clk 0:03:08]}
7. Qxb6 {[%clk 0:02:42]}  axb6 {[%clk 0:03:09]} 8. Na3 {[%clk 0:02:28]}  e5 {[%clk 0:02:42]} 9. Nb5 {[%clk 0:02:19]}  Ra5 {[%clk 0:02:37]}
10. Nc7+ {[%clk 0:02:06]}  Kd8 {[%clk 0:02:30]} 11. Nxd5 {[%clk 0:01:39]}  Rxd5 {[%clk 0:02:03]} 12. Bxc4 {[%clk 0:01:24]}  Rd7 {[%clk 0:01:59]}
13. dxe5 {[%clk 0:01:18]}  h6 {[%clk 0:01:45]} 14. h4 {[%clk 0:01:17]}  g6 {[%clk 0:01:24]} 15. Nf3 {[%clk 0:00:55]}  Bg7 {[%clk 0:01:25]}
16. Bb5 {[%clk 0:00:46]}  Nge7 {[%clk 0:01:23]} 17. Ke2 {[%clk 0:00:42]}  Kc8 {[%clk 0:01:11]} 18. Nd4 {[%clk 0:00:22]}  Rhd8 {[%clk 0:00:50]}
19. e4 {[%clk 0:00:16]}  Bxe4 {[%clk 0:00:40]} 20. e6 {[%clk 0:00:15]}  Nxd4+ {[%clk 0:00:36]} 21. cxd4 {[%clk 0:00:15]}  Rxd4 {[%clk 0:00:29]}
22. Rac1+ {[%clk 0:00:16]}  Bc6 {[%clk 0:00:22]} 23. Bxc6 {[%clk 0:00:16]}  bxc6 {[%clk 0:00:19]} 24. exf7 {[%clk 0:00:17]}  Rxf4 {[%clk 0:00:18]}
25. Ke3 {[%clk 0:00:17]}  Rxf7 {[%clk 0:00:19]} 26. f3 {[%clk 0:00:18]}  Kc7 {[%clk 0:00:20]} 27. Rhe1 {[%clk 0:00:19]}  Nd5+ {[%clk 0:00:21]}
28. Kf2 {[%clk 0:00:20]}  Re7 {[%clk 0:00:22]} 29. Red1 {[%clk 0:00:20]}  Rde8 {[%clk 0:00:22]} 30. Rc2 {[%clk 0:00:20]}  Kb7 {[%clk 0:00:22]}
31. g3 {[%clk 0:00:20]}  Ne3 {[%clk 0:00:23]} 32. Rcd2 {[%clk 0:00:21]}  Nxd1+ {[%clk 0:00:23]} 33. Rxd1 {[%clk 0:00:22]}  Re2+ {[%clk 0:00:24]}
34. Kf1 {[%clk 0:00:23]}  Rxb2 {[%clk 0:00:22]} 35. Rd7+ {[%clk 0:00:24]}  Ka6 {[%clk 0:00:24]} 36. Rxg7 {[%clk 0:00:24]}  Rd8 {[%clk 0:00:24]}
37. Re7 {[%clk 0:00:24]}  Rd1+ {[%clk 0:00:25]} 38. Re1 {[%clk 0:00:25]}  Rxe1+ {[%clk 0:00:24]} 39. Kxe1 {[%clk 0:00:26]}  Rxa2 {[%clk 0:00:22]}
40. g4 {[%clk 0:00:27]}  b5 {[%clk 0:00:22]} 41. f4 {[%clk 0:00:27]}  Kb6 {[%clk 0:00:20]} 42. f5 {[%clk 0:00:25]}  gxf5 {[%clk 0:00:21]}
43. gxf5 {[%clk 0:00:26]}  Kc5 {[%clk 0:00:22]} 44. f6 {[%clk 0:00:27]}  Kd4 {[%clk 0:00:23]} 45. f7 {[%clk 0:00:26]}  Ra8 {[%clk 0:00:23]} 0-1

[Event "2026 Biel Blitz Open"]
[Site "Biel, CH"]
[Date "2026.07.19"]
[Round "2"]
[White "Hakimifard, Ghazal"]
[Black "Baury, Noe"]
[Result "1-0"]
[Board "31"]
[TimeControl "180+2"]
[WhiteFideId "12506540"]
[BlackFideId "651086867"]
[WhiteElo "2130"]
[BlackElo "1886"]
[WhiteTitle "WGM"]
[WhiteClock "0:00:16"]
[BlackClock "0:00:40"]
[Variant "Standard"]
[EndDate "2026.07.19"]
[EndTime "12:08:25"]

1. e4 {[%clk 0:03:03]}  e5 {[%clk 0:03:03]} 2. Nf3 {[%clk 0:03:04]}  Nc6 {[%clk 0:03:05]} 3. Bb5 {[%clk 0:03:05]}  g6 {[%clk 0:03:06]}
4. c3 {[%clk 0:02:58]}  Bg7 {[%clk 0:03:07]} 5. O-O {[%clk 0:02:59]}  Nge7 {[%clk 0:03:07]} 6. Re1 {[%clk 0:02:57]}  a6 {[%clk 0:03:08]}
7. Ba4 {[%clk 0:02:56]}  b5 {[%clk 0:03:00]} 8. Bb3 {[%clk 0:02:56]}  O-O {[%clk 0:02:54]} 9. d4 {[%clk 0:02:57]}  exd4 {[%clk 0:02:55]}
10. cxd4 {[%clk 0:02:59]}  d6 {[%clk 0:02:53]} 11. h3 {[%clk 0:02:57]}  Na5 {[%clk 0:02:54]} 12. Bc2 {[%clk 0:02:58]}  c5 {[%clk 0:02:55]}
13. Nc3 {[%clk 0:02:56]}  cxd4 {[%clk 0:02:24]} 14. Nxd4 {[%clk 0:02:57]}  Bb7 {[%clk 0:02:25]} 15. Bg5 {[%clk 0:02:47]}  Nc4 {[%clk 0:02:15]}
16. Nd5 {[%clk 0:02:02]}  f6 {[%clk 0:01:26]} 17. Ne6 {[%clk 0:01:32]}  Qd7 {[%clk 0:01:27]} 18. Nxf8 {[%clk 0:01:28]}  Rxf8 {[%clk 0:01:29]}
19. Bc1 {[%clk 0:01:21]}  Nxd5 {[%clk 0:01:02]} 20. exd5 {[%clk 0:01:22]}  f5 {[%clk 0:01:03]} 21. Rb1 {[%clk 0:01:13]}  Qf7 {[%clk 0:00:56]}
22. b3 {[%clk 0:00:58]}  Ne5 {[%clk 0:00:54]} 23. Ba3 {[%clk 0:00:57]}  Rd8 {[%clk 0:00:49]} 24. f4 {[%clk 0:00:56]}  Nd7 {[%clk 0:00:45]}
25. Bxd6 {[%clk 0:00:36]}  Nb6 {[%clk 0:00:39]} 26. Re7 {[%clk 0:00:36]}  Qf6 {[%clk 0:00:41]} 27. Rxb7 {[%clk 0:00:18]}  Qxd6 {[%clk 0:00:42]}
28. Qf3 {[%clk 0:00:15]}  Nxd5 {[%clk 0:00:40]} 29. Rd1 {[%clk 0:00:15]}  Qc5+ {[%clk 0:00:40]} 30. Qf2 {[%clk 0:00:16]} 1-0

[Event "2026 Biel Blitz Open"]
[Site "Biel, CH"]
[Date "2026.07.19"]
[Round "2"]
[White "Leuthold, Cyrill"]
[Black "Erne, Raphael"]
[Result "0-1"]
[Board "32"]
[TimeControl "180+2"]
[WhiteFideId "1333011"]
[BlackFideId "1341928"]
[WhiteElo "1887"]
[BlackElo "2128"]
[WhiteClock "0:00:06"]
[BlackClock "0:01:02"]
[Variant "Standard"]
[EndDate "2026.07.19"]
[EndTime "12:07:21"]

1. d4 {[%clk 0:03:03]}  d5 {[%clk 0:03:04]} 2. Nf3 {[%clk 0:03:03]}  Nf6 {[%clk 0:03:05]} 3. c3 {[%clk 0:03:04]}  c5 {[%clk 0:03:04]}
4. dxc5 {[%clk 0:03:04]}  e6 {[%clk 0:03:05]} 5. b4 {[%clk 0:03:04]}  a5 {[%clk 0:02:55]} 6. e3 {[%clk 0:03:00]}  axb4 {[%clk 0:02:44]}
7. cxb4 {[%clk 0:03:01]}  b6 {[%clk 0:02:45]} 8. Bb5+ {[%clk 0:02:51]}  Bd7 {[%clk 0:02:40]} 9. Bxd7+ {[%clk 0:02:51]}  Nbxd7 {[%clk 0:02:23]}
10. a4 {[%clk 0:02:50]}  bxc5 {[%clk 0:02:19]} 11. b5 {[%clk 0:02:51]}  Bd6 {[%clk 0:02:13]} 12. O-O {[%clk 0:02:50]}  O-O {[%clk 0:02:14]}
13. Bb2 {[%clk 0:02:50]}  c4 {[%clk 0:02:12]} 14. Nbd2 {[%clk 0:02:17]}  Nc5 {[%clk 0:02:11]} 15. Bc3 {[%clk 0:01:54]}  Qc7 {[%clk 0:01:47]}
16. h3 {[%clk 0:01:37]}  Rfb8 {[%clk 0:01:33]} 17. Nd4 {[%clk 0:01:32]}  Nfe4 {[%clk 0:01:14]} 18. Nxe4 {[%clk 0:01:30]}  Nxe4 {[%clk 0:01:14]}
19. Qc2 {[%clk 0:01:11]}  Bh2+ {[%clk 0:01:13]} 20. Kh1 {[%clk 0:01:10]}  Be5 {[%clk 0:01:14]} 21. Ne2 {[%clk 0:00:19]}  Nxc3 {[%clk 0:01:05]}
22. Nxc3 {[%clk 0:00:19]}  Qa5 {[%clk 0:01:06]} 23. Rfc1 {[%clk 0:00:06]}  Qxc3 {[%clk 0:01:04]} 24. Qxc3 {[%clk 0:00:07]}  Bxc3 {[%clk 0:01:05]}
25. Rxc3 {[%clk 0:00:07]}  Rxb5 {[%clk 0:01:06]} 26. axb5 {[%clk 0:00:03]}  Rxa1+ {[%clk 0:01:07]} 27. Kh2 {[%clk 0:00:04]}  Rb1 {[%clk 0:01:02]}
28. Ra3 {[%clk 0:00:05]}  Kf8 {[%clk 0:01:03]} 29. Ra8+ {[%clk 0:00:05]}  Ke7 {[%clk 0:01:04]} 30. Ra7+ {[%clk 0:00:06]}  Kf6 {[%clk 0:01:05]}
31. Ra5 {[%clk 0:00:06]}  c3 {[%clk 0:01:02]} 0-1